[Event "Titled Tuesday Blitz August 08 Late 2023"]
[White "Araujo Filho, Luiz Antonio Coel"]
[Black "JERO-8914"]
[WhiteFideId "2130661"]
[WhiteElo "2210"]
[BlackElo "2456"]
[Result "0-1"]
[Round "4"]
[TimeControl "180+1"]
[Date "2023.08.08"]
[WhiteClock "0:00:00"]
[BlackClock "0:00:04"]
[Board "175"]

1. d4 {[%clk 0:03:00]}  Nf6 {[%clk 0:02:57]} 2. Nf3 {[%clk 0:03:00]}  c5 {[%clk 0:02:57]} 3. e3 {[%clk 0:03:00]}  g6 {[%clk 0:02:57]} 4. Be2 {[%clk 0:02:59]}  Bg7 {[%clk 0:02:58]} 5. O-O {[%clk 0:03:00]}  O-O {[%clk 0:02:54]} 6. b3 {[%clk 0:03:00]}  d6 {[%clk 0:02:38]} 7. Bb2 {[%clk 0:03:00]}  cxd4 {[%clk 0:02:38]} 8. exd4 {[%clk 0:03:00]}  Nh5 {[%clk 0:02:39]} 9. Qd2 {[%clk 0:02:56]}  Nc6 {[%clk 0:02:37]} 10. c4 {[%clk 0:02:55]}  e5 {[%clk 0:01:56]} 11. d5 {[%clk 0:02:05]}  Nb8 {[%clk 0:01:50]} 12. Nc3 {[%clk 0:02:05]}  f5 {[%clk 0:01:43]} 13. g3 {[%clk 0:01:56]}  Nd7 {[%clk 0:01:31]} 14. b4 {[%clk 0:01:56]}  Qf6 {[%clk 0:01:14]} 15. Nb5 {[%clk 0:01:45]}  Nb6 {[%clk 0:01:00]} 16. c5 {[%clk 0:01:40]}  Na4 {[%clk 0:00:49]} 17. Nxd6 {[%clk 0:01:33]}  Nxb2 {[%clk 0:00:49]} 18. Qxb2 {[%clk 0:01:33]}  e4 {[%clk 0:00:49]} 19. Qxf6 {[%clk 0:01:25]}  Bxf6 {[%clk 0:00:50]} 20. Rac1 {[%clk 0:01:13]}  exf3 {[%clk 0:00:49]} 21. Bxf3 {[%clk 0:01:14]}  Ng7 {[%clk 0:00:38]} 22. Nxc8 {[%clk 0:01:01]}  Raxc8 {[%clk 0:00:37]} 23. d6 {[%clk 0:01:02]}  Rb8 {[%clk 0:00:35]} 24. b5 {[%clk 0:00:59]}  Ne8 {[%clk 0:00:17]} 25. Rfe1 {[%clk 0:00:50]}  Rd8 {[%clk 0:00:13]} 26. Bxb7 {[%clk 0:00:49]}  Nxd6 {[%clk 0:00:13]} 27. cxd6 {[%clk 0:00:44]}  Rxd6 {[%clk 0:00:14]} 28. Re2 {[%clk 0:00:24]}  Rfd8 {[%clk 0:00:13]} 29. Rc7 {[%clk 0:00:23]}  R6d7 {[%clk 0:00:10]} 30. Rxd7 {[%clk 0:00:22]}  Rxd7 {[%clk 0:00:11]} 31. Bc6 {[%clk 0:00:22]}  Rd6 {[%clk 0:00:08]} 32. Kg2 {[%clk 0:00:15]}  Bd4 {[%clk 0:00:08]} 33. a4 {[%clk 0:00:11]}  Kf7 {[%clk 0:00:08]} 34. a5 {[%clk 0:00:10]}  Kf6 {[%clk 0:00:08]} 35. Rc2 {[%clk 0:00:09]}  Ke5 {[%clk 0:00:05]} 36. h3 {[%clk 0:00:08]}  h6 {[%clk 0:00:04]} 37. Re2+ {[%clk 0:00:06]}  Kf6 {[%clk 0:00:04]} 38. Re8 {[%clk 0:00:04]}  Bc3 {[%clk 0:00:04]} 39. a6 {[%clk 0:00:02]}  Bd4 {[%clk 0:00:04]} 40. Re2 {[%clk 0:00:02]}  Bb6 {[%clk 0:00:04]} 41. Rc2 {[%clk 0:00:02]}  Bd4 {[%clk 0:00:04]} 42. Re2 {[%clk 0:00:03]}  Bb6 {[%clk 0:00:04]} 43. Rc2 {[%clk 0:00:03]}  g5 {[%clk 0:00:05]} 44. Re2 {[%clk 0:00:04]}  Rd4 {[%clk 0:00:05]} 45. Rc2 {[%clk 0:00:03]}  Rb4 {[%clk 0:00:05]} 46. Re2 {[%clk 0:00:03]}  f4 {[%clk 0:00:05]} 47. gxf4 {[%clk 0:00:03]}  Rxf4 {[%clk 0:00:06]} 48. Rd2 {[%clk 0:00:02]}  Ke5 {[%clk 0:00:06]} 49. Re2+ {[%clk 0:00:03]}  Kd6 {[%clk 0:00:06]} 50. Rd2+ {[%clk 0:00:03]}  Ke5 {[%clk 0:00:06]} 51. f3 {[%clk 0:00:02]}  h5 {[%clk 0:00:05]} 52. Rd5+ {[%clk 0:00:02]}  Kf6 {[%clk 0:00:05]} 53. Rd6+ {[%clk 0:00:03]}  Ke5 {[%clk 0:00:05]} 54. Rd7 {[%clk 0:00:03]}  Rb4 {[%clk 0:00:04]} 55. Kg3 {[%clk 0:00:00]}  h4+ {[%clk 0:00:04]} 0-1


[Site "https://www.chess.com"]

[Event "Titled Tuesday Blitz August 08 Late 2023"]
[White "Clawitter, Craig"]
[Black "Ozalp, Burak"]
[WhiteFideId "2023105"]
[BlackFideId "6314210"]
[WhiteElo "2190"]
[BlackElo "2394"]
[Result "0-1"]
[Round "4"]
[TimeControl "180+1"]
[Date "2023.08.08"]
[WhiteClock "0:00:00"]
[BlackClock "0:00:04"]
[Board "177"]

1. e4 {[%clk 0:02:58]}  c6 {[%clk 0:03:00]} 2. d4 {[%clk 0:02:58]}  d5 {[%clk 0:03:01]} 3. e5 {[%clk 0:02:58]}  Bf5 {[%clk 0:03:00]} 4. Nf3 {[%clk 0:02:59]}  e6 {[%clk 0:03:00]} 5. Be2 {[%clk 0:02:59]}  Ne7 {[%clk 0:03:00]} 6. O-O {[%clk 0:02:55]}  h6 {[%clk 0:03:00]} 7. Nbd2 {[%clk 0:02:55]}  Nd7 {[%clk 0:03:00]} 8. Nb3 {[%clk 0:02:55]}  g5 {[%clk 0:02:56]} 9. Ne1 {[%clk 0:02:54]}  Bg7 {[%clk 0:02:55]} 10. f4 {[%clk 0:02:54]}  Ng6 {[%clk 0:02:51]} 11. Bd3 {[%clk 0:02:45]}  Qb6 {[%clk 0:02:39]} 12. Bxf5 {[%clk 0:02:37]}  exf5 {[%clk 0:02:40]} 13. fxg5 {[%clk 0:02:32]}  hxg5 {[%clk 0:02:39]} 14. Rxf5 {[%clk 0:02:27]}  c5 {[%clk 0:02:39]} 15. dxc5 {[%clk 0:02:15]}  Qe6 {[%clk 0:02:31]} 16. Nd4 {[%clk 0:02:01]}  Qe7 {[%clk 0:02:31]} 17. Bxg5 {[%clk 0:01:56]}  Qxc5 {[%clk 0:02:32]} 18. Nf3 {[%clk 0:01:28]}  Ndxe5 {[%clk 0:02:30]} 19. Nxe5 {[%clk 0:01:23]}  Bxe5 {[%clk 0:02:26]} 20. c3 {[%clk 0:01:19]}  Bxh2+ {[%clk 0:02:21]} 21. Kf1 {[%clk 0:01:16]}  Bg3 {[%clk 0:02:11]} 22. Qa4+ {[%clk 0:01:12]}  b5 {[%clk 0:02:06]} 23. Nxb5 {[%clk 0:00:57]}  Rh1+ {[%clk 0:01:55]} 24. Ke2 {[%clk 0:00:57]}  Kf8 {[%clk 0:00:09]} 25. Rxh1 {[%clk 0:00:36]}  Re8+ {[%clk 0:00:08]} 26. Kd1 {[%clk 0:00:29]}  Kg8 {[%clk 0:00:03]} 27. Nd4 {[%clk 0:00:17]}  Qc8 {[%clk 0:00:03]} 28. Rf3 {[%clk 0:00:09]}  Bd6 {[%clk 0:00:01]} 29. Re3 {[%clk 0:00:09]}  Be5 {[%clk 0:00:02]} 30. Rhe1 {[%clk 0:00:05]}  Qg4+ {[%clk 0:00:02]} 31. Kc1 {[%clk 0:00:05]}  Qxg5 {[%clk 0:00:03]} 32. Kc2 {[%clk 0:00:05]}  Re7 {[%clk 0:00:03]} 33. Nc6 {[%clk 0:00:03]}  Qf5+ {[%clk 0:00:03]} 34. Kc1 {[%clk 0:00:03]}  Re6 {[%clk 0:00:04]} 35. Nd4 {[%clk 0:00:03]}  Qg5 {[%clk 0:00:04]} 36. Nxe6 {[%clk 0:00:03]}  fxe6 {[%clk 0:00:04]} 37. Kb1 {[%clk 0:00:02]}  Kg7 {[%clk 0:00:02]} 38. Rxe5 {[%clk 0:00:02]}  Nxe5 {[%clk 0:00:03]} 39. Qd4 {[%clk 0:00:02]}  Qf5+ {[%clk 0:00:04]} 40. Ka1 {[%clk 0:00:00]}  Kf6 {[%clk 0:00:04]} 0-1


[Site "https://www.chess.com"]

[Event "Titled Tuesday Blitz August 08 Late 2023"]
[White "campochess"]
[Black "Harish, Neeraj"]
[BlackFideId "30958130"]
[WhiteElo "2166"]
[BlackElo "2317"]
[Result "0-1"]
[Round "4"]
[TimeControl "180+1"]
[Date "2023.08.08"]
[WhiteClock "0:00:30"]
[BlackClock "0:00:18"]
[Board "181"]

1. d4 {[%clk 0:03:00]}  Nf6 {[%clk 0:02:58]} 2. Bg5 {[%clk 0:02:59]}  d5 {[%clk 0:02:56]} 3. Nd2 {[%clk 0:02:56]}  c5 {[%clk 0:02:50]} 4. e3 {[%clk 0:02:56]}  Nc6 {[%clk 0:02:49]} 5. c3 {[%clk 0:02:56]}  h6 {[%clk 0:02:33]} 6. Bf4 {[%clk 0:02:52]}  Bf5 {[%clk 0:02:28]} 7. Ngf3 {[%clk 0:02:49]}  e6 {[%clk 0:02:21]} 8. Bb5 {[%clk 0:02:48]}  Qb6 {[%clk 0:02:17]} 9. Qa4 {[%clk 0:02:41]}  Be7 {[%clk 0:01:47]} 10. Ne5 {[%clk 0:02:37]}  Rc8 {[%clk 0:01:46]} 11. O-O {[%clk 0:02:29]}  O-O {[%clk 0:01:45]} 12. Bxc6 {[%clk 0:02:27]}  bxc6 {[%clk 0:01:46]} 13. dxc5 {[%clk 0:02:20]}  Bxc5 {[%clk 0:01:42]} 14. Nb3 {[%clk 0:02:15]}  Be7 {[%clk 0:01:41]} 15. Nd4 {[%clk 0:02:15]}  c5 {[%clk 0:01:33]} 16. Nxf5 {[%clk 0:02:14]}  exf5 {[%clk 0:01:31]} 17. Nd3 {[%clk 0:02:14]}  Bd6 {[%clk 0:01:08]} 18. Rab1 {[%clk 0:02:11]}  Bxf4 {[%clk 0:01:07]} 19. Nxf4 {[%clk 0:02:10]}  Rfd8 {[%clk 0:01:06]} 20. b4 {[%clk 0:02:09]}  c4 {[%clk 0:00:59]} 21. Qc2 {[%clk 0:02:05]}  g6 {[%clk 0:00:57]} 22. a4 {[%clk 0:02:04]}  Qb7 {[%clk 0:00:48]} 23. Rfd1 {[%clk 0:02:01]}  Rc7 {[%clk 0:00:43]} 24. Rd4 {[%clk 0:01:55]}  Rcd7 {[%clk 0:00:44]} 25. Rbd1 {[%clk 0:01:54]}  g5 {[%clk 0:00:44]} 26. Ne2 {[%clk 0:01:50]}  Ne4 {[%clk 0:00:41]} 27. f3 {[%clk 0:01:48]}  Nd6 {[%clk 0:00:38]} 28. Rxd5 {[%clk 0:01:45]}  Kg7 {[%clk 0:00:37]} 29. Ng3 {[%clk 0:01:44]}  Qb6 {[%clk 0:00:35]} 30. Kh1 {[%clk 0:01:35]}  Qxe3 {[%clk 0:00:34]} 31. Rxd6 {[%clk 0:01:35]}  Rxd6 {[%clk 0:00:32]} 32. Nxf5+ {[%clk 0:01:35]}  Kg8 {[%clk 0:00:31]} 33. Nxh6+ {[%clk 0:01:33]}  Kf8 {[%clk 0:00:28]} 34. Rg1 {[%clk 0:01:22]}  Qxg1+ {[%clk 0:00:21]} 35. Kxg1 {[%clk 0:01:20]}  Rd1+ {[%clk 0:00:21]} 36. Kf2 {[%clk 0:01:18]}  R8d2+ {[%clk 0:00:21]} 37. Qxd2 {[%clk 0:01:17]}  Rxd2+ {[%clk 0:00:22]} 38. Ke3 {[%clk 0:01:16]}  Rxg2 {[%clk 0:00:21]} 39. Ng4 {[%clk 0:01:16]}  Ra2 {[%clk 0:00:20]} 40. a5 {[%clk 0:01:14]}  f5 {[%clk 0:00:20]} 41. Ne5 {[%clk 0:01:13]}  Rxh2 {[%clk 0:00:19]} 42. Nxc4 {[%clk 0:01:12]}  g4 {[%clk 0:00:20]} 43. fxg4 {[%clk 0:01:11]}  fxg4 {[%clk 0:00:20]} 44. Kf4 {[%clk 0:01:10]}  Rc2 {[%clk 0:00:20]} 45. b5 {[%clk 0:01:07]}  Rxc3 {[%clk 0:00:20]} 46. Nd6 {[%clk 0:00:59]}  Ke7 {[%clk 0:00:19]} 47. Ne4 {[%clk 0:00:58]}  Rb3 {[%clk 0:00:18]} 48. Kxg4 {[%clk 0:00:57]}  Rxb5 {[%clk 0:00:18]} 49. Kf4 {[%clk 0:00:55]}  Rxa5 {[%clk 0:00:18]} 50. Nc3 {[%clk 0:00:55]}  Kd6 {[%clk 0:00:18]} 51. Ke4 {[%clk 0:00:55]}  Kc5 {[%clk 0:00:18]} 52. Nd5 {[%clk 0:00:53]}  Ra4+ {[%clk 0:00:18]} 53. Ke5 {[%clk 0:00:51]}  Ra1 {[%clk 0:00:19]} 54. Nc3 {[%clk 0:00:47]}  Re1+ {[%clk 0:00:19]} 55. Kf4 {[%clk 0:00:46]}  a5 {[%clk 0:00:20]} 56. Kf3 {[%clk 0:00:45]}  Kc4 {[%clk 0:00:20]} 57. Na4 {[%clk 0:00:43]}  Kb4 {[%clk 0:00:20]} 58. Nb2 {[%clk 0:00:42]}  Kb3 {[%clk 0:00:19]} 59. Nd3 {[%clk 0:00:42]}  Re8 {[%clk 0:00:19]} 60. Nc5+ {[%clk 0:00:41]}  Kb2 {[%clk 0:00:19]} 61. Kf2 {[%clk 0:00:38]}  Ka3 {[%clk 0:00:18]} 62. Kf3 {[%clk 0:00:36]}  a4 {[%clk 0:00:19]} 63. Kf2 {[%clk 0:00:35]}  Kb4 {[%clk 0:00:19]} 64. Na6+ {[%clk 0:00:35]}  Kc3 {[%clk 0:00:18]} 65. Nc5 {[%clk 0:00:33]}  a3 {[%clk 0:00:18]} 66. Na4+ {[%clk 0:00:30]}  Kc2 {[%clk 0:00:18]} 0-1


[Site "https://www.chess.com"]

[Event "Titled Tuesday Blitz August 08 Late 2023"]
[White "Osmonbekov, Talaibek"]
[Black "AndresDelgado77"]
[WhiteFideId "2017253"]
[WhiteElo "2166"]
[BlackElo "2310"]
[Result "0-1"]
[Round "4"]
[TimeControl "180+1"]
[Date "2023.08.08"]
[WhiteClock "0:00:00"]
[BlackClock "0:00:39"]
[Board "183"]

1. d4 {[%clk 0:03:00]}  Nf6 {[%clk 0:02:59]} 2. Nc3 {[%clk 0:03:01]}  e6 {[%clk 0:02:57]} 3. Bf4 {[%clk 0:03:01]}  c5 {[%clk 0:02:38]} 4. e3 {[%clk 0:03:00]}  a6 {[%clk 0:02:36]} 5. Nf3 {[%clk 0:02:58]}  Qb6 {[%clk 0:02:35]} 6. Na4 {[%clk 0:02:48]}  Qa5+ {[%clk 0:02:33]} 7. c3 {[%clk 0:02:49]}  c4 {[%clk 0:02:18]} 8. b3 {[%clk 0:01:50]}  b5 {[%clk 0:02:10]} 9. Nb2 {[%clk 0:01:28]}  Qxc3+ {[%clk 0:02:07]} 10. Qd2 {[%clk 0:01:28]}  Bb4 {[%clk 0:01:59]} 11. a3 {[%clk 0:01:04]}  Qxd2+ {[%clk 0:01:53]} 12. Nxd2 {[%clk 0:01:05]}  Bc3 {[%clk 0:01:51]} 13. bxc4 {[%clk 0:00:30]}  Bxb2 {[%clk 0:01:38]} 14. Rb1 {[%clk 0:00:30]}  Bxa3 {[%clk 0:01:25]} 15. cxb5 {[%clk 0:00:29]}  axb5 {[%clk 0:01:22]} 16. Bxb5 {[%clk 0:00:29]}  Nd5 {[%clk 0:01:16]} 17. Bxb8 {[%clk 0:00:27]}  Rxb8 {[%clk 0:01:16]} 18. Bxd7+ {[%clk 0:00:26]}  Kxd7 {[%clk 0:01:13]} 19. Rxb8 {[%clk 0:00:27]}  Bb4 {[%clk 0:01:11]} 20. e4 {[%clk 0:00:17]}  Kc7 {[%clk 0:01:04]} 21. Rxc8+ {[%clk 0:00:15]}  Rxc8 {[%clk 0:01:02]} 22. exd5 {[%clk 0:00:16]}  Kd6 {[%clk 0:01:03]} 23. Ke2 {[%clk 0:00:15]}  Rc2 {[%clk 0:01:02]} 24. Rd1 {[%clk 0:00:15]}  Kxd5 {[%clk 0:01:00]} 25. Rb1 {[%clk 0:00:05]}  Rxd2+ {[%clk 0:00:57]} 26. Ke3 {[%clk 0:00:05]}  Rxd4 {[%clk 0:00:55]} 27. f3 {[%clk 0:00:02]}  Bc5 {[%clk 0:00:53]} 28. Ke2 {[%clk 0:00:02]}  e5 {[%clk 0:00:48]} 29. Ra1 {[%clk 0:00:01]}  Rb4 {[%clk 0:00:43]} 30. Ra8 {[%clk 0:00:00]}  h5 {[%clk 0:00:39]} 0-1


[Site "https://www.chess.com"]

[Event "Titled Tuesday Blitz August 08 Late 2023"]
[White "Guevara Sanchez, Erick Marvin"]
[Black "Spichkin, Alexander"]
[WhiteFideId "6700136"]
[BlackFideId "4144074"]
[WhiteElo "2110"]
[BlackElo "2299"]
[Result "1-0"]
[Round "4"]
[TimeControl "180+1"]
[Date "2023.08.08"]
[WhiteClock "0:01:46"]
[BlackClock "0:02:02"]
[Board "184"]

1. e4 {[%clk 0:03:00]}  e5 {[%clk 0:02:55]} 2. Nf3 {[%clk 0:03:00]}  d5 {[%clk 0:02:55]} 3. Nxe5 {[%clk 0:02:58]}  Bd6 {[%clk 0:02:55]} 4. d4 {[%clk 0:02:51]}  dxe4 {[%clk 0:02:53]} 5. Bc4 {[%clk 0:02:38]}  Bxe5 {[%clk 0:02:53]} 6. dxe5 {[%clk 0:02:38]}  Qxd1+ {[%clk 0:02:51]} 7. Kxd1 {[%clk 0:02:39]}  Nc6 {[%clk 0:02:51]} 8. Re1 {[%clk 0:02:33]}  Bg4+ {[%clk 0:02:45]} 9. Be2 {[%clk 0:02:28]}  O-O-O+ {[%clk 0:02:45]} 10. Bd2 {[%clk 0:02:22]}  Nxe5 {[%clk 0:02:44]} 11. Nc3 {[%clk 0:02:20]}  Nf6 {[%clk 0:02:37]} 12. Kc1 {[%clk 0:02:15]}  Bf5 {[%clk 0:02:30]} 13. Bf4 {[%clk 0:02:12]}  Ng6 {[%clk 0:02:27]} 14. Be3 {[%clk 0:02:12]}  a6 {[%clk 0:02:25]} 15. b4 {[%clk 0:02:07]}  Nd5 {[%clk 0:02:24]} 16. Nxd5 {[%clk 0:02:06]}  Rxd5 {[%clk 0:02:22]} 17. Bc4 {[%clk 0:02:03]}  Rd7 {[%clk 0:02:22]} 18. b5 {[%clk 0:02:01]}  axb5 {[%clk 0:02:19]} 19. Bxb5 {[%clk 0:02:02]}  c6 {[%clk 0:02:19]} 20. Bc4 {[%clk 0:02:00]}  Ne5 {[%clk 0:02:20]} 21. Be2 {[%clk 0:01:58]}  Be6 {[%clk 0:02:18]} 22. a4 {[%clk 0:01:56]}  f5 {[%clk 0:02:16]} 23. a5 {[%clk 0:01:53]}  Nc4 {[%clk 0:02:15]} 24. a6 {[%clk 0:01:52]}  bxa6 {[%clk 0:02:15]} 25. Rxa6 {[%clk 0:01:50]}  Rhd8 {[%clk 0:02:11]} 26. Rxc6+ {[%clk 0:01:48]}  Kb7 {[%clk 0:02:10]} 27. Rxe6 {[%clk 0:01:48]}  Nxe3 {[%clk 0:02:09]} 28. fxe3 {[%clk 0:01:48]}  g6 {[%clk 0:02:02]} 29. Rd1 {[%clk 0:01:46]} 1-0


[Site "https://www.chess.com"]

[Event "Titled Tuesday Blitz August 08 Late 2023"]
[White "Nikulina, Alena"]
[Black "Fernandez Madrid, Carlos"]
[WhiteFideId "4172051"]
[BlackFideId "2206030"]
[WhiteElo "2069"]
[BlackElo "2279"]
[Result "0-1"]
[Round "4"]
[TimeControl "180+1"]
[Date "2023.08.08"]
[WhiteClock "0:00:04"]
[BlackClock "0:00:46"]
[Board "187"]

1. e4 {[%clk 0:02:56]}  g6 {[%clk 0:02:59]} 2. d4 {[%clk 0:02:55]}  Bg7 {[%clk 0:02:59]} 3. Nc3 {[%clk 0:02:55]}  d6 {[%clk 0:02:58]} 4. Be3 {[%clk 0:02:48]}  a6 {[%clk 0:02:58]} 5. Bc4 {[%clk 0:02:46]}  b5 {[%clk 0:02:57]} 6. Bb3 {[%clk 0:02:46]}  e6 {[%clk 0:02:56]} 7. a3 {[%clk 0:02:44]}  Bb7 {[%clk 0:02:56]} 8. Nge2 {[%clk 0:02:44]}  Nf6 {[%clk 0:02:56]} 9. f3 {[%clk 0:02:44]}  O-O {[%clk 0:02:55]} 10. Qd2 {[%clk 0:02:44]}  Nbd7 {[%clk 0:02:53]} 11. O-O-O {[%clk 0:02:43]}  Nb6 {[%clk 0:02:51]} 12. Bh6 {[%clk 0:02:37]}  Nc4 {[%clk 0:02:50]} 13. Bxc4 {[%clk 0:02:34]}  bxc4 {[%clk 0:02:51]} 14. Bxg7 {[%clk 0:02:33]}  Kxg7 {[%clk 0:02:51]} 15. h4 {[%clk 0:02:32]}  h6 {[%clk 0:02:42]} 16. g4 {[%clk 0:02:30]}  Bc6 {[%clk 0:02:39]} 17. g5 {[%clk 0:02:27]}  Ng8 {[%clk 0:02:39]} 18. gxh6+ {[%clk 0:02:24]}  Nxh6 {[%clk 0:02:38]} 19. h5 {[%clk 0:02:25]}  g5 {[%clk 0:02:39]} 20. f4 {[%clk 0:02:23]}  gxf4 {[%clk 0:02:35]} 21. Rdg1+ {[%clk 0:02:20]}  Kh7 {[%clk 0:02:35]} 22. Qxf4 {[%clk 0:01:59]}  Rg8 {[%clk 0:02:33]} 23. d5 {[%clk 0:01:51]}  Bd7 {[%clk 0:02:22]} 24. e5 {[%clk 0:01:36]}  dxe5 {[%clk 0:02:11]} 25. Qxe5 {[%clk 0:01:20]}  f6 {[%clk 0:02:11]} 26. Qe4+ {[%clk 0:01:18]}  f5 {[%clk 0:02:10]} 27. Qe5 {[%clk 0:01:13]}  Qe7 {[%clk 0:01:58]} 28. Rg6 {[%clk 0:01:05]}  Qd6 {[%clk 0:01:49]} 29. Qf6 {[%clk 0:00:30]}  Qf8 {[%clk 0:01:42]} 30. dxe6 {[%clk 0:00:27]}  Qxf6 {[%clk 0:01:40]} 31. Rxf6 {[%clk 0:00:26]}  Be8 {[%clk 0:01:40]} 32. Nd5 {[%clk 0:00:25]}  Bc6 {[%clk 0:01:35]} 33. Nxc7 {[%clk 0:00:25]}  Bxh1 {[%clk 0:01:34]} 34. Nxa8 {[%clk 0:00:25]}  Bxa8 {[%clk 0:01:33]} 35. Nf4 {[%clk 0:00:21]}  Re8 {[%clk 0:01:27]} 36. Ng6 {[%clk 0:00:20]}  Bd5 {[%clk 0:01:22]} 37. e7 {[%clk 0:00:20]}  Bf7 {[%clk 0:01:21]} 38. Rxa6 {[%clk 0:00:18]}  Bxg6 {[%clk 0:01:21]} 39. hxg6+ {[%clk 0:00:19]}  Kg7 {[%clk 0:01:21]} 40. Re6 {[%clk 0:00:19]}  Ng8 {[%clk 0:01:16]} 41. Rc6 {[%clk 0:00:15]}  Nxe7 {[%clk 0:01:13]} 42. Rxc4 {[%clk 0:00:16]}  Nxg6 {[%clk 0:01:12]} 43. b4 {[%clk 0:00:16]}  f4 {[%clk 0:01:12]} 44. Rc3 {[%clk 0:00:13]}  Rf8 {[%clk 0:01:09]} 45. Rf3 {[%clk 0:00:12]}  Ne5 {[%clk 0:01:09]} 46. Rf1 {[%clk 0:00:11]}  f3 {[%clk 0:01:09]} 47. Kd2 {[%clk 0:00:10]}  Ng4 {[%clk 0:01:05]} 48. a4 {[%clk 0:00:09]}  f2 {[%clk 0:01:04]} 49. Ke2 {[%clk 0:00:08]}  Re8+ {[%clk 0:01:03]} 50. Kd2 {[%clk 0:00:08]}  Re4 {[%clk 0:01:00]} 51. c3 {[%clk 0:00:07]}  Kg6 {[%clk 0:00:59]} 52. Kd3 {[%clk 0:00:06]}  Rf4 {[%clk 0:00:57]} 53. Ke2 {[%clk 0:00:06]}  Re4+ {[%clk 0:00:57]} 54. Kd3 {[%clk 0:00:06]}  Kf5 {[%clk 0:00:56]} 55. a5 {[%clk 0:00:06]}  Re3+ {[%clk 0:00:56]} 56. Kd2 {[%clk 0:00:06]}  Rf3 {[%clk 0:00:55]} 57. Ke2 {[%clk 0:00:06]}  Rxc3 {[%clk 0:00:54]} 58. a6 {[%clk 0:00:05]}  Ra3 {[%clk 0:00:54]} 59. b5 {[%clk 0:00:05]}  Ra2+ {[%clk 0:00:54]} 60. Kd3 {[%clk 0:00:05]}  Kf4 {[%clk 0:00:53]} 61. Kc4 {[%clk 0:00:05]}  Ne3+ {[%clk 0:00:51]} 62. Kc5 {[%clk 0:00:05]}  Nxf1 {[%clk 0:00:51]} 63. Kb6 {[%clk 0:00:04]}  Ne3 {[%clk 0:00:50]} 64. Kb7 {[%clk 0:00:04]}  f1=Q {[%clk 0:00:50]} 65. a7 {[%clk 0:00:05]}  Qf3+ {[%clk 0:00:46]} 66. Kb8 {[%clk 0:00:04]} 0-1


[Site "https://www.chess.com"]

[Event "Titled Tuesday Blitz August 08 Late 2023"]
[White "Osiecki, Stanislaw"]
[Black "alfianasybullina"]
[WhiteFideId "1102990"]
[WhiteElo "2003"]
[BlackElo "2250"]
[Result "1/2-1/2"]
[Round "4"]
[TimeControl "180+1"]
[Date "2023.08.08"]
[WhiteClock "0:00:04"]
[BlackClock "0:00:11"]
[Board "190"]

1. e4 {[%clk 0:03:00]}  c6 {[%clk 0:02:58]} 2. d4 {[%clk 0:03:00]}  d5 {[%clk 0:02:58]} 3. e5 {[%clk 0:02:57]}  c5 {[%clk 0:02:58]} 4. c3 {[%clk 0:02:57]}  Nc6 {[%clk 0:02:56]} 5. h3 {[%clk 0:02:56]}  Bf5 {[%clk 0:02:51]} 6. Nf3 {[%clk 0:02:54]}  e6 {[%clk 0:02:51]} 7. Bd3 {[%clk 0:02:53]}  Bxd3 {[%clk 0:02:49]} 8. Qxd3 {[%clk 0:02:52]}  Nge7 {[%clk 0:02:48]} 9. O-O {[%clk 0:02:51]}  Nf5 {[%clk 0:02:47]} 10. Rd1 {[%clk 0:02:51]}  Be7 {[%clk 0:02:47]} 11. a3 {[%clk 0:02:50]}  O-O {[%clk 0:02:46]} 12. dxc5 {[%clk 0:02:47]}  Bxc5 {[%clk 0:02:44]} 13. b4 {[%clk 0:02:46]}  Bb6 {[%clk 0:02:43]} 14. Bf4 {[%clk 0:02:41]}  Rc8 {[%clk 0:02:30]} 15. Nbd2 {[%clk 0:02:41]}  Re8 {[%clk 0:02:25]} 16. Nb3 {[%clk 0:02:40]}  f6 {[%clk 0:02:24]} 17. Rac1 {[%clk 0:02:31]}  fxe5 {[%clk 0:02:20]} 18. Nxe5 {[%clk 0:02:31]}  Nxe5 {[%clk 0:02:21]} 19. Bxe5 {[%clk 0:02:31]}  Qg5 {[%clk 0:02:17]} 20. Nd4 {[%clk 0:02:08]}  Nh4 {[%clk 0:02:09]} 21. Qg3 {[%clk 0:01:54]}  Qxg3 {[%clk 0:02:05]} 22. Bxg3 {[%clk 0:01:51]}  Ng6 {[%clk 0:02:00]} 23. Nb5 {[%clk 0:01:41]}  Re7 {[%clk 0:01:49]} 24. Nd6 {[%clk 0:01:32]}  Rf8 {[%clk 0:01:48]} 25. c4 {[%clk 0:01:30]}  Nf4 {[%clk 0:01:40]} 26. Bxf4 {[%clk 0:01:28]}  Rxf4 {[%clk 0:01:41]} 27. c5 {[%clk 0:01:28]}  Bd8 {[%clk 0:01:37]} 28. Rc2 {[%clk 0:01:14]}  g5 {[%clk 0:01:35]} 29. Nc8 {[%clk 0:01:12]}  Rd7 {[%clk 0:01:26]} 30. Nxa7 {[%clk 0:01:11]}  d4 {[%clk 0:01:24]} 31. Rd3 {[%clk 0:01:08]}  e5 {[%clk 0:01:23]} 32. f3 {[%clk 0:01:08]}  e4 {[%clk 0:01:20]} 33. fxe4 {[%clk 0:01:07]}  Rxe4 {[%clk 0:01:21]} 34. Rcd2 {[%clk 0:01:05]}  b6 {[%clk 0:01:17]} 35. Nb5 {[%clk 0:00:59]}  bxc5 {[%clk 0:01:14]} 36. bxc5 {[%clk 0:00:59]}  Rb7 {[%clk 0:01:00]} 37. a4 {[%clk 0:00:57]}  Ba5 {[%clk 0:00:55]} 38. Rd1 {[%clk 0:00:46]}  Rb8 {[%clk 0:00:48]} 39. Rxd4 {[%clk 0:00:45]}  Rxd4 {[%clk 0:00:47]} 40. Rxd4 {[%clk 0:00:44]}  Kf7 {[%clk 0:00:47]} 41. Rd7+ {[%clk 0:00:43]}  Ke6 {[%clk 0:00:46]} 42. Rxh7 {[%clk 0:00:43]}  Rc8 {[%clk 0:00:46]} 43. Rh6+ {[%clk 0:00:41]}  Ke5 {[%clk 0:00:43]} 44. c6 {[%clk 0:00:38]}  Bb6+ {[%clk 0:00:43]} 45. Kh2 {[%clk 0:00:38]}  Kf5 {[%clk 0:00:38]} 46. g4+ {[%clk 0:00:24]}  Ke5 {[%clk 0:00:35]} 47. Rg6 {[%clk 0:00:23]}  Kf4 {[%clk 0:00:33]} 48. Rf6+ {[%clk 0:00:22]}  Ke4 {[%clk 0:00:30]} 49. c7 {[%clk 0:00:20]}  Bxc7+ {[%clk 0:00:27]} 50. Nxc7 {[%clk 0:00:20]}  Rxc7 {[%clk 0:00:27]} 51. Rf5 {[%clk 0:00:20]}  Rc2+ {[%clk 0:00:25]} 52. Kg1 {[%clk 0:00:20]}  Rc1+ {[%clk 0:00:24]} 53. Kf2 {[%clk 0:00:20]}  Rc2+ {[%clk 0:00:24]} 54. Ke1 {[%clk 0:00:20]}  Ke3 {[%clk 0:00:24]} 55. Kd1 {[%clk 0:00:18]}  Rh2 {[%clk 0:00:24]} 56. Rxg5 {[%clk 0:00:17]}  Rxh3 {[%clk 0:00:23]} 57. a5 {[%clk 0:00:16]}  Kf4 {[%clk 0:00:21]} 58. Rd5 {[%clk 0:00:11]}  Kxg4 {[%clk 0:00:18]} 59. Kc2 {[%clk 0:00:10]}  Kf4 {[%clk 0:00:18]} 60. Kb2 {[%clk 0:00:08]}  Ke4 {[%clk 0:00:18]} 61. Rd8 {[%clk 0:00:06]}  Rh5 {[%clk 0:00:14]} 62. Ra8 {[%clk 0:00:05]}  Kd4 {[%clk 0:00:12]} 63. Ka3 {[%clk 0:00:06]}  Kc5 {[%clk 0:00:11]} 64. Ka4 {[%clk 0:00:05]}  Rh4+ {[%clk 0:00:11]} 65. Kb3 {[%clk 0:00:05]}  Kb5 {[%clk 0:00:11]} 66. Ka3 {[%clk 0:00:04]}  Rh3+ {[%clk 0:00:11]} 67. Kb2 {[%clk 0:00:05]}  Rh2+ {[%clk 0:00:10]} 68. Kc3 {[%clk 0:00:05]}  Rh3+ {[%clk 0:00:11]} 69. Kd4 {[%clk 0:00:05]}  Ra3 {[%clk 0:00:11]} 70. Kd5 {[%clk 0:00:05]}  Rxa5 {[%clk 0:00:10]} 71. Rxa5+ {[%clk 0:00:04]}  Kxa5 {[%clk 0:00:11]} 1/2-1/2


[Site "https://www.chess.com"]